Cogmind - Beta 14 @@@ ROGUE MODE // 2025.03.10 @ 21:57:42 Player: moonlol Result: Self-destructed Performance ------------- Evolutions (0) 0 Regions Visited (4) 800 Robots Destroyed (44) 220 Value Destroyed (1081) 1081 Prototype IDs (15) 300 Alien Tech Used (0) 0 Bonus (300) 300 TOTAL SCORE: 2701 Bonus ------- Registered with UFD 300 Cogmind --------- Core Integrity 124/250 Matter 83/300 Energy 160/160 System Corruption 0% Temperature Cool (0) Movement Rolling (215) Ox9 Location -7/Scraptown Parts ------- > --- POWER (1) -------- Light Fission Core > --- PROPULSION (2) --- Spiked Treads Wheel > --- UTILITY (2) ------ Huge Storage Unit Transmission Jammer > --- WEAPON (2) ------- Heavy EM Pulse Gun Beam Cannon > --- INVENTORY (25) --- Spiked Treads Large Storage Unit Improved Medium Armor Plating Improved Medium Armor Plating Shield Generator Authchip [Power] Authchip [Armor] A0-MCA's Component Scanner Scrapoid Pod Heavy EM Pulse Gun Riot Gun Powered Cannon Light Cannon Gauss Cannon Subdweller Shrapnel Launcher CPS Tube (2) CPS Tube (2) CPS Tube (2) Flamer Great Maul Botcube Peak State ------------ > --- POWER ------------ Light Fission Core > --- PROPULSION ------- Spiked Treads Wheel > --- UTILITY ---------- Huge Storage Unit Improved Medium Armor Plating > --- WEAPON ----------- Riot Gun Gauss Cannon > --- INVENTORY -------- Spiked Treads Large Storage Unit Transmission Jammer Improved Medium Armor Plating Improved Medium Armor Plating Scrap Shield Shield Generator Authchip [Power] Authchip [Armor] Heavy EM Pulse Gun Heavy EM Pulse Gun Beam Cannon Powered Cannon Light Cannon Subdweller Shrapnel Launcher CPS Tube CPS Tube Flamer Great Maul Scrap Shield Fragment Scrap Shield Fragment Scrap Shield Fragment Scrap Shield Fragment [Rating: 27] Favorites ----------- Power Light Ion Engine Engine Light Ion Engine Power Core Light Fission Core Propulsion Spiked Treads Treads Spiked Treads Wheel Wheel Utility Huge Storage Unit Device Transmission Jammer Storage Huge Storage Unit Processor Signal Interpreter Protection Improved Medium Armor Plating Weapon Improved EM Shotgun Energy Gun Improved EM Shotgun Energy Cannon Beam Cannon Ballistic Gun Battle Rifle Ballistic Cannon Gauss Cannon Launcher Subdweller Shrapnel Launcher Build | -11 -10 -10 -7 -7 ------- Run | Yrd Mat Sub Rec Scr Slots Evolved . | . . . . . Power . | . . . . . Propulsion . | . . . . . Utility . | . . . . . Weapon . | . . . . . Parts Attached 78 | 8 19 29 7 15 Power 7 | 1 2 2 . 2 Engine 5 | 1 2 2 . . Core 2 | . . . . 2 Reactor . | . . . . . Propulsion 14 | 2 3 6 . 3 Treads 10 | 2 2 4 . 2 Leg . | . . . . . Wheel 4 | . 1 2 . 1 Hover . | . . . . . Flight . | . . . . . Utility 22 | 2 3 6 3 8 Device 3 | 1 . . . 2 Storage 7 | 1 2 1 . 3 Processor 1 | . . 1 . . Hackware . | . . . . . Protection 11 | . 1 4 3 3 Artifact . | . . . . . Weapon 35 | 3 11 15 4 2 Energy Gun 21 | 2 11 5 2 1 Energy Cannon 4 | . . 3 . 1 Ballistic Gun 3 | 1 . 2 . . Ballistic Cannon 6 | . . 4 2 . Launcher 1 | . . 1 . . Special Weapon . | . . . . . Impact Weapon . | . . . . . Slashing Weapon . | . . . . . Piercing Weapon . | . . . . . Special Melee Weapon . | . . . . . Unidentified Prototypes 1 | . 1 . . . Parts Lost 8 | . 5 3 . . Power 3 | . 2 1 . . Propulsion 2 | . 1 1 . . Utility 2 | . 1 1 . . Weapon 1 | . 1 . . . Highest Loss Streak 3 | . 3 2 . . To Critical Strikes . | . . . . . Average Slot Usage (%) 94 | . 96 88 98 97 Engine 10 | . 12 13 14 4 Core 3 | . . . . 8 Treads 19 | . 23 25 14 13 Wheel 8 | . 4 2 14 13 Storage 10 | . 14 4 14 13 Protection 12 | . 11 12 13 11 Energy Gun 13 | . 27 9 5 13 Energy Cannon 2 | . . 3 . 3 Ballistic Gun 4 | . . 10 8 . Ballistic Cannon 6 | . . 4 13 10 Peak Build Rating 27 | 7 14 16 22 27 Average Rating 17 | 5 11 13 18 23 On Entrance 11 | . 7 14 12 22 Naked Turns 55 | . . . . 55 Heaviest Build 104 | 13 88 90 102 104 Greatest Support 40 | 40 40 40 10 40 Greatest Overweight (x) 26 | 3 8 8 10 26 Average Overweight (x) 4 | . 1 . 9 9 Largest Inventory Capacity 25 | 8 25 25 25 25 Average Capacity 17 | 7 15 8 25 24 Most Carried 25 | 6 15 20 25 25 Average Carried 16 | 3 13 7 23 23 Final Capacity 25 | 8 15 25 25 25 Final Carried 25 | 6 15 20 25 23 Class Distribution -------------------- 100% | Mutant Dominant Class ---------------- Mutant | -10/Materials Mutant | -10/Subcaves Mutant | -7/Recycling Mutant | -7/Scraptown Resources | -11 -10 -10 -7 -7 ----------- Run | Yrd Mat Sub Rec Scr Matter Collected 1372 | 210 235 676 52 199 Remotely . | . . . . . Salvage Created 1582 | 103 907 454 118 . Parts 96 | 5 54 31 6 . Haulers Intercepted 1 | . 1 . . . Recyclers Shooed 1 | . 1 . . . Parts Field Recycled . | . . . . . Retrieved Matter . | . . . . . Parts Self-Destructed 23 | . . 23 . . Prevented . | . . . . . Kills | -11 -10 -10 -7 -7 ------- Run | Yrd Mat Sub Rec Scr Combat Hostiles Destroyed 31 | . 17 13 1 . Guns 24 | . 15 9 . . Cannons 3 | . . 2 1 . AOE 2 | . 1 1 . . Classes Destroyed 12 | 2 7 2 1 . Worker 1 | . 1 . . . Builder 1 | . 1 . . . Tunneler 1 | 1 . . . . Hauler 1 | . 1 . . . Recycler 3 | 1 1 . 1 . Operator 1 | . 1 . . . Turret 2 | . . 2 . . Watcher 3 | . 3 . . . Swarmer 10 | . 6 4 . . Grunt 11 | . 11 . . . Sentry 1 | . . . 1 . Subdweller 9 | . . 9 . . Best Kill Streak 5 | 2 5 3 1 . Combat Bots Only 3 | . 3 3 1 . Max Kills in Single Turn 1 | 1 1 1 1 . Gunslinging . | . . . . . Exploded 1 | . 1 1 . . Melee . | . . . . . Uniques/NPCs Destroyed . | . . . . . Combat | -11 -10 -10 -7 -7 -------- Run | Yrd Mat Sub Rec Scr Hostile Shots Fired 171 | . 58 86 27 . Missed 54 | . 13 33 8 . Damage Taken 1769 | 28 560 1035 146 . Core 126 | . 62 47 17 . Absorbed by Shields . | . . . . . Regen/Repaired (Parts) 649 | . 372 . . 277 Core Remaining (%) 100 | 100 . . . . Volleys Fired 172 | 5 51 108 3 5 Largest 2 | 2 2 2 2 2 Hottest 105 | 90 95 90 98 105 Shots Fired 281 | 10 102 152 7 10 Gun 184 | 10 102 64 3 5 Cannon 93 | . . 84 4 5 Launcher 4 | . . 4 . . Special . | . . . . . Kinetic 101 | . . 97 4 . Thermal 71 | 5 38 23 . 5 Explosive . | . . . . . Electromagnetic 109 | 5 64 32 3 5 Robot Hit Streak 24 | 3 10 24 6 . Robot Miss Streak 3 | 2 3 2 2 . Penetration Max . | . . . . . Secondary Targets 3 | . 2 1 . . Max Gunslinging Chain 1 | . 1 1 . . Shots Hit Robots 124 | 7 65 46 6 . Core Hits 63 | 2 35 22 4 . Critical Kills . | . . . . . Critical Parts Destroyed . | . . . . . Critical Strikes 8 | . 8 . . . Burn 7 | . 7 . . . Corrupt 1 | . 1 . . . Melee Attacks . | . . . . . Impact . | . . . . . Slashing . | . . . . . Piercing . | . . . . . Sneak Attacks . | . . . . . Combat Hostiles . | . . . . . Follow-up Attacks . | . . . . . Damage Inflicted 2539 | 107 1154 1157 121 . Guns 1582 | 78 944 522 38 . Cannons 367 | . . 284 83 . Explosions 590 | 29 210 351 . . Melee . | . . . . . Ramming . | . . . . . Kinetic 651 | . . 568 83 . Thermal 841 | 68 498 275 . . Explosive . | . . . . . Electromagnetic 1047 | 39 656 314 38 . Impact . | . . . . . Slashing . | . . . . . Piercing . | . . . . . Highest Corruption 2 | . 2 2 2 . Average Corruption 2 | . 2 2 2 . Corruption Purged . | . . . . . Corruption Blocked . | . . . . . Effects 97 | . 24 54 19 . Message Errors 25 | . 7 12 6 . Matter Fused 22 | . 5 13 4 . Heat Flow Errors 8 | . 1 5 2 . Energy Discharges 18 | . 3 11 4 . Data Loss (minor) 8 | . 3 4 1 . Data Loss (major) 5 | . 1 3 1 . Misfires 4 | . 2 1 1 . Alerts 4 | . 1 3 . . Weapon Failures 3 | . 1 2 . . Overload Shots . | . . . . . Overflow Damage 27 | . 9 18 . . Projectiles . | . . . . . Explosions 27 | . 9 18 . . Melee . | . . . . . Knockbacks 2 | . . 2 . . Impact . | . . . . . Kinetic 2 | . . 2 . . Secondary . | . . . . . Self-Inflicted Damage 129 | 29 56 44 . . Shots 5 | 1 2 2 . . Rammed . | . . . . . Targets Rammed . | . . . . . Kicked . | . . . . . Crushed . | . . . . . Highest Temperature 270 | 90 261 253 156 270 Average Temperature 76 | 44 80 48 73 139 Received Heat Transfer 501 | . 252 201 48 . Effects 1 | . 1 . . . Energy Bleed 1 | . 1 . . . Siege Activations . | . . . . . Robots Corrupted 1 | . 1 . . . Combat Hostiles 1 | . 1 . . . Parts Fried 4 | . 2 2 . . Impact Corruptions . | . . . . . Robots Melted . | . . . . . Combat Hostiles . | . . . . . Parts Melted 5 | 1 2 2 . . Heat Transferred 2337 | 161 1669 507 . . Parts Sabotaged . | . . . . . Parts Stolen . | . . . . . Parts Stripped . | . . . . . Power Chain Reactions 8 | 1 5 2 . . Alert | -11 -10 -10 -7 -7 ------- Run | Yrd Mat Sub Rec Scr Peak Influence 224 | 10 224 . 50 . Initial 6 | . 6 . . . Average 54 | 3 78 . 18 . Maximum Alert Level 1 | . 1 . . . Low Security (%) 96 | 100 94 . 100 . Level 1 3 | . 5 . . . Level 2 . | . . . . . Level 3 . | . . . . . Level 4 . | . . . . . Level 5 . | . . . . . High Security . | . . . . . Max Security . | . . . . . Squads Dispatched 4 | . 4 . . . Investigation 1 | . 1 . . . Extermination . | . . . . . Reinforcement 3 | . 3 . . . Assault . | . . . . . Garrison . | . . . . . Intercept . | . . . . . Searches Triggered . | . . . . . Construction Impeded . | . . . . . Haulers Reinforced . | . . . . . Active Scanning Responses . | . . . . . Cargo Convoy Interrupts . | . . . . . Stealth | -11 -10 -10 -7 -7 --------- Run | Yrd Mat Sub Rec Scr Distress Signals 4 | . 4 . . . Communications Jammed . | . . . . . Distress Signals . | . . . . . Times Spotted 48 | . 28 19 1 . Peak Tracking Total 5 | . 4 5 1 . Tactical Retreats 5 | . 2 3 . . Traps | -11 -10 -10 -7 -7 ------- Run | Yrd Mat Sub Rec Scr Traps Triggered 2 | . 1 1 . . Indirectly . | . . . . . Trap Hack Attempts . | . . . . . Triggered . | . . . . . Disarmed . | . . . . . Reprogrammed . | . . . . . Reused . | . . . . . Traps Extracted . | . . . . . Installed . | . . . . . Triggered . | . . . . . Machines | -11 -10 -10 -7 -7 ---------- Run | Yrd Mat Sub Rec Scr Machines Disabled 6 | . 1 5 . . Max in Single Turn 3 | . 1 3 . . Machines Repaired . | . . . . . Machines Dismantled . | . . . . . Machines Sabotaged . | . . . . . Overloaded Fab Kills . | . . . . . Hacking | -11 -10 -10 -7 -7 --------- Run | Yrd Mat Sub Rec Scr Machines Accessed 26 | . 7 1 9 9 Terminals 9 | . 5 . 4 . Fabricators . | . . . . . Repair Stations 1 | . 1 . . . Recycling Units 4 | . 1 . 3 . Scanalyzers . | . . . . . Garrison Access . | . . . . . Total Hacks 121 | . 17 1 24 79 Successful 105 | . 9 1 16 79 Failed 16 | . 8 . 8 . Catastrophic 4 | . 2 . 2 . Database Lockouts . | . . . . . Manual 23 | . 8 . 15 . Terminals 20 | . 12 . 8 . Fabricators . | . . . . . Repair Stations 2 | . 2 . . . Recycling Units 12 | . 3 . 9 . Scanalyzers . | . . . . . Garrison Access . | . . . . . Terminal Hacks 89 | . 1 1 8 79 Record 78 | . . . 6 72 Robot Analysis 7 | . . . . 7 Recall Investigation 1 | . 1 . . . Zone Layout 1 | . . . 1 . Derelict Proto ID Bank 1 | . . 1 . . Release Object 1 | . . . 1 . Fabricator Hacks . | . . . . . Repair Station Hacks 2 | . 2 . . . Scan Component 1 | . 1 . . . Repair 1 | . 1 . . . Recycling Unit Hacks 3 | . 2 . 1 . Report Inventory 2 | . 1 . 1 . Retrieve Components 1 | . 1 . . . Scanalyzer . | . . . . . Garrison Access Hacks . | . . . . . Unauthorized Hacks 11 | . 4 . 7 . Terminals 6 | . 3 . 3 . Track 2 | . 1 . 1 . Assimilate 1 | . 1 . . . Botnet 3 | . 1 . 2 . Fabricators . | . . . . . Repair Stations . | . . . . . Recycling Units 5 | . 1 . 4 . Monitor 1 | . . . 1 . Reject 3 | . 1 . 2 . Recyclers 1 | . . . 1 . Scanalyzers . | . . . . . Garrison Access . | . . . . . Data Cores Recovered . | . . . . . Used . | . . . . . Hacking Detections 13 | . 7 . 6 . Full Trace Events 1 | . 1 . . . Feedback Events . | . . . . . Feedback Blocked . | . . . . . Robot Schematics Acquired . | . . . . . Robots Built . | . . . . . Authchips . | . . . . . Time . | . . . . . Total Robot Build Rating . | . . . . . Part Schematics Acquired . | . . . . . Parts Built . | . . . . . Authchips . | . . . . . Time . | . . . . . Total Part Build Rating . | . . . . . Parts Repaired 1 | . 1 . . . Time 26 | . 26 . . . Parts Recycled . | . . . . . Recycled Matter . | . . . . . Retrieved Matter . | . . . . . Retrieved Components 10 | . 10 . . . Parts Scanalyzed . | . . . . . Part Schematics Acquired . | . . . . . Parts Damaged . | . . . . . Bothacking | -11 -10 -10 -7 -7 ------------ Run | Yrd Mat Sub Rec Scr Used RIF Installer . | . . . . . Robots Hacked . | . . . . . Non-combat . | . . . . . Combat . | . . . . . Robot Hacks Applied . | . . . . . Relay Couplers Released . | . . . . . Fabnet Peak Effective % . | . . . . . Robots Rewired . | . . . . . Allies Hacked . | . . . . . Hacks Repelled . | . . . . . Allies | -11 -10 -10 -7 -7 -------- Run | Yrd Mat Sub Rec Scr Total Allies . | . . . . . Largest Group . | . . . . . Highest-Rated Group . | . . . . . Highest-Rated Ally . | . . . . . Total Orders . | . . . . . Ally Attacks . | . . . . . Total Damage . | . . . . . Kills . | . . . . . Allies Corrupted . | . . . . . Allies Melted . | . . . . . Intel | -11 -10 -10 -7 -7 ------- Run | Yrd Mat Sub Rec Scr Robot Analysis Total 7 | . . . . 7 Derelict Logs Recovered 5 | . . 2 . 3 Drone Launches . | . . . . . Drone Recoveries . | . . . . . Exploration | -11 -10 -10 -7 -7 ------------- Run | Yrd Mat Sub Rec Scr Turns Passed 13705 | 122 2369 4648 1454 5112 Spaces Moved 6323 | 56 819 2516 633 2299 Core 121 | 9 . . . 112 Treads 2745 | 47 492 2196 . 10 Legs . | . . . . . Wheels 3457 | . 327 320 633 2177 Hover . | . . . . . Flight . | . . . . . Fastest Speed 50 | 50 110 100 200 50 Average Speed 186 | 160 151 161 219 218 Slowest Speed 1350 | 200 240 360 230 1350 Overloaded Moves . | . . . . . Propulsion Burnouts . | . . . . . Robots Hopped . | . . . . . Cave-ins Triggered . | . . . . . Exploration Rate (%) 76 | 5 94 94 95 93 Regions Visited 4 Branch Regions 3 Pre-discovered Areas 8 | . . 2 . 6 Known Exits Taken 1 | . . 1 . . Unknown Exits Taken 3 | 1 1 . 1 . Scrap Searched 9 | . . 5 . 4 Spaces Dug . | . . . . . Terrain Destroyed 53 | 2 8 41 2 . Melee . | . . . . . Projectile 2 | . . . 2 . AOE 51 | 2 8 41 . . Terrain Rammed . | . . . . . Walls Destroyed . | . . . . . Machines Disabled . | . . . . . Actions | -11 -10 -10 -7 -7 --------- Run | Yrd Mat Sub Rec Scr Total 7955 | 74 1848 2953 697 2383 Wait 1196 | . 919 235 39 3 Move 6319 | 55 818 2515 632 2299 Hop . | . . . . . Pick Up 105 | 6 23 23 9 44 Fast Attach 42 | 7 6 12 3 14 Attach 6 | . 2 3 . 1 Detach 9 | . 1 4 . 4 Swap 30 | 1 11 14 4 . Drop 62 | . 17 26 7 12 Fire 172 | 5 51 108 3 5 Melee . | . . . . . Ram . | . . . . . Kick . | . . . . . Crush . | . . . . . Escape Stasis . | . . . . . Rewire 1 | . . . . 1 Trap . | . . . . . Miscellaneous 13 | . . 13 . . Route ------- -11/Scrapyard -10/Materials (discovered 5 exits: [*Mat x3] / [*Min] / *Sub) -10/Subcaves (discovered 3 exits: *Mat x2 / *Rec) -7/Recycling (discovered 2 exits: [*Fac] / *Scr) -7/Scraptown (discovered 1 exit: [*Fac]) History --------- Turn | Location | Event 47 | -11/Scrapyard | Discovered new exit (range 16) 123 | -11/Scrapyard | Entered Materials 233 | -10/Materials | Discovered new exit (range 16) 305 | -10/Materials | Build established: Mutant 534 | -10/Materials | Discovered new exit (range 7) 642 | -10/Materials | Repaired Huge Storage Unit 1000 | -10/Materials | Lost 3 parts (1p1n1w) 1021 | -10/Materials | Discovered new exit (range 14) 1430 | -10/Materials | Discovered new exit (range 11) 2472 | -10/Materials | Discovered new exit (range 12) 2492 | -10/Materials | Entered Subcaves 3473 | -10/Subcaves | Shifting Twisted Machinery released Battle Cannon 3475 | -10/Subcaves | Shifting Twisted Machinery released Battle Cannon 3563 | -10/Subcaves | Shifting Twisted Machinery released Barrage Gun 3624 | -10/Subcaves | Shifting Twisted Machinery released Battle Cannon 3636 | -10/Subcaves | Discovered new exit (range 10) 3782 | -10/Subcaves | Discovered new exit (range 14) 4086 | -10/Subcaves | A swath of the cavern ceiling suddenly collapsed 4707 | -10/Subcaves | Ambushed by Subdweller buried in earth 4710 | -10/Subcaves | A swath of the cavern ceiling suddenly collapsed 5010 | -10/Subcaves | Learned location of Recycling (-7) 5136 | -10/Subcaves | Identified exit to Materials 5154 | -10/Subcaves | Identified exit to Recycling 5266 | -10/Subcaves | Shifting Twisted Machinery released Scrap Shield 5364 | -10/Subcaves | Disturbed a concealed Subdweller 5494 | -10/Subcaves | Shifting Twisted Machinery released Sub. Beam Cannon 5702 | -10/Subcaves | Discovered exit to Materials (range 10) 6602 | -10/Subcaves | Visited 4L-MR0's lab 6640 | -10/Subcaves | Found Powered Cannon 7140 | -10/Subcaves | Entered Recycling 7141 | -7/Recycling | Met a Zionite searching for Scraptown 7992 | -7/Recycling | Core integrity fell below 50% 8065 | -7/Recycling | Discovered new exit (range 16) 8479 | -7/Recycling | Scanned before Scraplab entrance 8513 | -7/Recycling | Entered Scraplab 8549 | -7/Recycling | Discovered new exit (range 3) 8594 | -7/Recycling | Entered Scraptown 8594 | -7/Scraptown | System corruption cleaned by C-Scrubber 8981 | -7/Scraptown | Heard Great Nut preacher, LISTEN AND RECITE! 9144 | -7/Scraptown | Visited Cyclists 9243 | -7/Scraptown | Visited SPCMW 9310 | -7/Scraptown | Visited CR-KLE's Repair Center 9328 | -7/Scraptown | CR-KLE repaired 4 parts 9397 | -7/Scraptown | Visited Junk Repository 9519 | -7/Scraptown | Visited Red Mages 9609 | -7/Scraptown | Visited Awakened 9719 | -7/Scraptown | Scanned Subdweller tech in exchange for log data 9726 | -7/Scraptown | Learned location of 2 exits from Proximity Caves 9730 | -7/Scraptown | Learned location of Zion (-6) 9765 | -7/Scraptown | Discovered new exit (range 5) 10055 | -7/Scraptown | Visited Cave Peace 10596 | -7/Scraptown | Visited UFD Registry 10596 | -7/Scraptown | Registered with UFD as "Arcskull" 10847 | -7/Scraptown | Entered Cyclist Reading Room 11022 | -7/Scraptown | Visited Research Penetration Think Tank 11114 | -7/Scraptown | Visited Scrapoid Pod Storage 11160 | -7/Scraptown | Visited Curators Association 11293 | -7/Scraptown | Visited Cartography Club 11539 | -7/Scraptown | Visited Abandonware Association 11944 | -7/Scraptown | Visited Analyses Database 11997 | -7/Scraptown | Visited Botcube Research 12050 | -7/Scraptown | Visited Chapter 10 12117 | -7/Scraptown | Visited A0-MCA Data Center 12131 | -7/Scraptown | Given a B rating by A0-MCA 12137 | -7/Scraptown | Found A0-MCA's Component Scanner 12253 | -7/Scraptown | Released all parts (7) 12289 | -7/Scraptown | Learned location of Lower Caves (-6) 12289 | -7/Scraptown | Learned location of Testing (-3) 12289 | -7/Scraptown | Learned 8 Materials zone layouts 12289 | -7/Scraptown | Learned 12 Materials zone layouts 12289 | -7/Scraptown | Learned 16 Factory zone layouts 12289 | -7/Scraptown | Learned location of 3 exits from Lower Caves 12289 | -7/Scraptown | Learned 20 Factory zone layouts 12289 | -7/Scraptown | Learned 8 Access zone layouts 12289 | -7/Scraptown | Learned 4 Recycling zone layouts 12289 | -7/Scraptown | Learned 20 Upper Caves zone layouts 12289 | -7/Scraptown | Learned Research emergency access door positions 12289 | -7/Scraptown | Learned location of 2 exits from Factory 12289 | -7/Scraptown | Learned location of 2 exits from Upper Caves 12740 | -7/Scraptown | Delivered Scrap Shield to a Scientist 13119 | -7/Scraptown | Found Unknown Device 13119 | -7/Scraptown | Identified Scrap Suit 13435 | -7/Scraptown | Found Scrapoid Pod 13600 | -7/Scraptown | Found Botcube 13706 | -7/Scraptown | Self-destructed Last Messages --------------- 13171_ Acquired CPS Tube. 13174_ Acquired Riot Gun. 13177_ Acquired Flamer. 13180_ Acquired Corrupted Authchip [Power]. 13183_ Acquired Spk. Treads. 13186_ Acquired Imp. Medium Armor Plating. 13190_ Acquired Shield Generator. 13193_ Acquired Corrupted Authchip [Armor]. 13196_ Dropped Scrap Shield Fragment. 13212_ I0-0UE(c): "Come one, come all! See for yourself a fine selection of the many wondrous pieces in our collection!" 13275_ Acquired CPS Tube. 13282_ I0-0UE(c): "Come one, come all! See for yourself a fine selection of the many wondrous pieces in our collection!" 13435_ Acquired Scrapoid Pod. 13475_ I0-0UE(c): "Come one, come all! See for yourself a fine selection of the many wondrous pieces in our collection!" H2-QO9(g): Some say the "United" part of UFD is more of an aspiration than the reality, but I say look at all we've accomplished together! 13600_ Acquired Botcube. Map ----- +----------------------------------------------------+ | ???"""" """""""""""""""""""""""""""" "## | | ??#"""" """""""""""""""""""""""""""" "## | | ??#"""" ""###### ################"" "## | | ??#"""" ""# ##????????#"" "### | | ??#"""" ""# X"#????????#"" "## | | #?#"""" ""# "" "" ##????????#"" "## | | #"#"""" ""# "" "" X"#??????###"" "## | | ""#"""" ""# " " ######### #"" "## | | #######" "" "" | | #?????#" "" "" "## | | #######" ""# " " ######### #"" "## | | ""# "" "" ""#??????###"" "## | | ""# "" "" ##????????#"" "### | | ""# ""#????????#"" "### | | ""# ##????????#"" "##" | | ""###### ################"" "## | | """""""""""""""""""""""""""" "## | | """""""""""""""""""""""""""" | | "## | | "## | | "## | | #""""#" ## | | #????#" # | | #????#"""""" """"""""""" """"""""""" """""" ### | | ##????####### ########### ########### ###### #?? | | ????????#" #?#" @ #??# # #?? | | ????????#"" "#?#""" """#??### "# #?? | | ????????#"" #?#"""" """#???# ""# #?? | | ????????#"" "#?#""" ! "!"#???# """"# #?? | | ????????#"" "#?#""" """#???# " ""# #?? | | ????????#""""" ""#?#""" c """#???# """"# ### | | ????????#""""""""#?#"""""""""#???# ""# | | ????????##########?#"""""""""#???# ""# | | ???????????????????#"""""""""#???## " # | | ???????????????????#"""""""""#???""""""""""# | | ????????????????????#########???############ | | ???????????????????????????????????????????# ### | | ???######################################### ### | | ???# ##"""##"""##"""##"""##"""##"|"# """ | | ???# """"""" ## ""## ""##" "##"""##""|##" # "" | | ???# """"""" | | ???# """"""" " | | ???# """"""" =/] """ | | ???# """"""" ##"""##"""##"" ##"|"##!! ##""|## #### | | ???# ##"""##"""##"""##"""##"""##"""####??? | | ???#########################################?????? | | ?????????????????????????????????????????????????? | | ?????????????????????????????????????????????????? | | ?????????????????????????????????????????????????? | | ?????????????????????????????????????????????????? | +----------------------------------------------------+ Best States ------------- Heat Dissipation 25 Energy Generation 18 Energy Capacity 250 Matter Stores 300 Matter Capacity 300 Sight Range 16 Terrain Scan Density 10 Jamming Range 12 Armor Coverage 800 Evasion (%) 50 Recoil Reduction 2 Authchip Count 2 Item Schematics ----------------- None Robot Schematics ------------------ None Fabricated ------------ Nothing Alien Tech Used ----------------- None Achievements -------------- None Challenges ------------ None Game ------ Seed WeaponsPointScrap Manual? 0 Play Time 00:55:18 Cumulative 99.2 hours Start 2025.03.10 @ 20:47:13 End 2025.03.10 @ 21:57:42 Sessions 1 Manual Loads 0 Difficulty Rogue Special Mode None Game No. 112 Rogue 64 Adventurer 47 Explorer 1 Win Type - Total 10 Types 7/0/0/1/0/0/2/0/0 Lore% 51 Gallery% 58 Achievement% 62 Wizard Run 0 Options --------- Layout 0 ASCII 0 Keyboard 1 Movement Numpad Keybinds 0 Fullscreen 2 Font 18/SmallcapsGlow Map View 76x50 Zoom Use 0% Tactical HUD 1 Map Filters NONE Filters NONE Steam 1 RUN: 595b5791-abb6-40b7-b08a-44ae66d76ef4